[Event "Early-Titled-Tuesday-Blitz-February-13-2024"]
[Site "Chess.com"]
[Date "2024.02.13"]
[Round "4"]
[White "OhanyanEminChess"]
[Black "KamlaPasand"]
[Result "1-0"]
[WhiteElo "2807"]
[BlackElo "2579"]
[TimeControl "180+1"]
[EndTime "8:43:18 PST"]
[Termination "OhanyanEminChess won by resignation"]

1. e4 {[%clk 0:03:00.9]} 1... e5 {[%clk 0:02:59.5]} 2. Nc3 {[%clk 0:02:58.7]}
2... Nc6 {[%clk 0:02:57.8]} 3. Bc4 {[%clk 0:02:58.5]} 3... d6 {[%clk 0:02:53.6]}
4. d3 {[%clk 0:02:58.4]} 4... Be6 {[%clk 0:02:50.5]} 5. Bb3 {[%clk 0:02:50.6]}
5... Nge7 {[%clk 0:02:47.5]} 6. f4 {[%clk 0:02:46.4]} 6... exf4 {[%clk
0:02:46.6]} 7. Bxf4 {[%clk 0:02:47.3]} 7... d5 {[%clk 0:02:45.5]} 8. Nf3 {[%clk
0:02:27.9]} 8... dxe4 {[%clk 0:02:44.9]} 9. dxe4 {[%clk 0:02:21.9]} 9... Ng6
{[%clk 0:02:41.5]} 10. Qxd8+ {[%clk 0:02:19.1]} 10... Kxd8 {[%clk 0:02:38.7]}
11. O-O-O+ {[%clk 0:02:18.4]} 11... Ke8 {[%clk 0:02:34.6]} 12. Bxc7 {[%clk
0:02:18]} 12... Bc5 {[%clk 0:02:32]} 13. Nd5 {[%clk 0:01:59.1]} 13... Rc8 {[%clk
0:02:01.6]} 14. Bg3 {[%clk 0:01:54.1]} 14... Na5 {[%clk 0:01:50.1]} 15. Ba4+
{[%clk 0:00:25.7]} 15... Kf8 {[%clk 0:01:49.1]} 16. b4 {[%clk 0:00:24.6]} 16...
Bxd5 {[%clk 0:01:44.9]} 17. exd5 {[%clk 0:00:19.2]} 17... Bxb4 {[%clk
0:01:43.1]} 18. d6 {[%clk 0:00:20.1]} 18... Ba3+ {[%clk 0:01:20.3]} 19. Kb1
{[%clk 0:00:18.4]} 19... b5 {[%clk 0:01:13.6]} 20. d7 {[%clk 0:00:16.8]} 20...
Rd8 {[%clk 0:01:13]} 21. Bc7 {[%clk 0:00:17.4]} 21... Ke7 {[%clk 0:01:10.4]} 22.
Rhe1+ {[%clk 0:00:15.9]} 22... Kf6 {[%clk 0:01:09.2]} 23. Bxd8+ {[%clk
0:00:16.2]} 23... Rxd8 {[%clk 0:01:08.1]} 24. Re8 {[%clk 0:00:17.1]} 24... Be7
{[%clk 0:01:04.7]} 25. Bxb5 {[%clk 0:00:12.8]} 25... Nb7 {[%clk 0:01:03.3]} 26.
Nd4 {[%clk 0:00:08.4]} 26... Ne5 {[%clk 0:01:01.8]} 27. Nc6 {[%clk 0:00:07.4]}
27... Nxc6 {[%clk 0:01:01]} 28. Bxc6 {[%clk 0:00:08.3]} 28... Na5 {[%clk
0:01:00.3]} 29. Rxd8 {[%clk 0:00:07.7]} 29... Bxd8 {[%clk 0:00:59.6]} 30. Bd5
{[%clk 0:00:08.6]} 30... Ke5 {[%clk 0:00:59.4]} 31. Bxf7 {[%clk 0:00:07.1]}
31... Nc6 {[%clk 0:00:59.4]} 32. c3 {[%clk 0:00:05.6]} 32... Ne7 {[%clk
0:00:58.4]} 33. Kc2 {[%clk 0:00:05.4]} 33... Nf5 {[%clk 0:00:58.5]} 34. Kb3
{[%clk 0:00:03.9]} 34... Ne3 {[%clk 0:00:57.4]} 35. Re1 {[%clk 0:00:03.9]} 35...
Kf4 {[%clk 0:00:56.8]} 36. g3+ {[%clk 0:00:04]} 36... Kf3 {[%clk 0:00:56.7]} 37.
Bh5+ {[%clk 0:00:04.1]} 37... Kf2 {[%clk 0:00:56.7]} 38. Re2+ {[%clk 0:00:04.5]}
38... Kf1 {[%clk 0:00:55.6]} 39. Rxe3 {[%clk 0:00:05.4]} 39... g6 {[%clk
0:00:54.6]} 40. Bd1 {[%clk 0:00:03.1]} 40... Bc7 {[%clk 0:00:54.9]} 41. Re8
{[%clk 0:00:02.7]} 41... Kf2 {[%clk 0:00:55.3]} 42. Rc8 {[%clk 0:00:03]} 42...
Bb6 {[%clk 0:00:55.3]} 43. c4 {[%clk 0:00:03.1]} 43... Bd8 {[%clk 0:00:56.2]}
44. Rxd8 {[%clk 0:00:03.3]} 44... Ke1 {[%clk 0:00:57.1]} 45. Bc2 {[%clk
0:00:03.4]} 45... Kf2 {[%clk 0:00:57.6]} 46. Kc3 {[%clk 0:00:03.2]} 46... Kg2
{[%clk 0:00:58.5]} 47. h4 {[%clk 0:00:03.6]} 47... Kh3 {[%clk 0:00:59.4]} 48.
Re8 {[%clk 0:00:03.4]} 48... g5 {[%clk 0:00:59.6]} 49. hxg5 {[%clk 0:00:03.5]}
49... h6 {[%clk 0:00:59.3]} 50. gxh6 {[%clk 0:00:04.4]} 50... a6 {[%clk
0:00:58.8]} 51. Re3 {[%clk 0:00:04.6]} 51... a5 {[%clk 0:00:59.5]} 52. Bf5+
{[%clk 0:00:04.2]} 52... Kh2 {[%clk 0:00:58.7]} 53. g4 {[%clk 0:00:05.1]} 53...
Kg1 {[%clk 0:00:58.3]} 54. Re2 {[%clk 0:00:05.1]} 54... Kf1 {[%clk 0:00:57.5]}
55. Bd3 {[%clk 0:00:06]} 55... Kg1 {[%clk 0:00:56.8]} 56. Kb2 {[%clk 0:00:06.9]}
56... a4 {[%clk 0:00:55.9]} 57. Ka3 {[%clk 0:00:07.8]} 57... Kf1 {[%clk
0:00:54.9]} 58. Kxa4 {[%clk 0:00:08.7]} 58... Kg1 {[%clk 0:00:54.8]} 59. Kb4
{[%clk 0:00:09.6]} 1-0

[Event "Early-Titled-Tuesday-Blitz-February-13-2024"]
[Site "Chess.com"]
[Date "2024.02.13"]
[Round "4"]
[White "Chesstiger64"]
[Black "ukchessbomber"]
[Result "1-0"]
[WhiteElo "2325"]
[BlackElo "2591"]
[TimeControl "180+1"]
[EndTime "8:43:18 PST"]
[Termination "Chesstiger64 won by resignation"]

1. d4 {[%clk 0:02:54.5]} 1... a6 {[%clk 0:03:00.9]} 2. e4 {[%clk 0:02:53.7]}
2... b6 {[%clk 0:03:01.8]} 3. Bd3 {[%clk 0:02:53.5]} 3... Bb7 {[%clk 0:03:02.4]}
4. Nf3 {[%clk 0:02:51.7]} 4... c5 {[%clk 0:03:03.3]} 5. c3 {[%clk 0:02:51.5]}
5... d6 {[%clk 0:03:04.2]} 6. Qe2 {[%clk 0:02:51.6]} 6... Nd7 {[%clk 0:03:05.1]}
7. O-O {[%clk 0:02:51.7]} 7... e6 {[%clk 0:03:05.4]} 8. e5 {[%clk 0:02:51]} 8...
h6 {[%clk 0:03:04.7]} 9. Nbd2 {[%clk 0:02:49.4]} 9... cxd4 {[%clk 0:02:58.3]}
10. cxd4 {[%clk 0:02:49]} 10... dxe5 {[%clk 0:02:58.9]} 11. dxe5 {[%clk
0:02:48.9]} 11... Nc5 {[%clk 0:02:58.7]} 12. Bc2 {[%clk 0:02:47.9]} 12... g5
{[%clk 0:02:51.2]} 13. b4 {[%clk 0:02:39.9]} 13... g4 {[%clk 0:02:50.7]} 14.
bxc5 {[%clk 0:02:12.1]} 14... gxf3 {[%clk 0:02:51.6]} 15. Nxf3 {[%clk
0:02:10.8]} 15... Bxc5 {[%clk 0:02:51.4]} 16. Rd1 {[%clk 0:02:06.4]} 16... Qc7
{[%clk 0:02:43.8]} 17. Be3 {[%clk 0:02:01.9]} 17... Bxe3 {[%clk 0:02:32.6]} 18.
fxe3 {[%clk 0:01:51.9]} 18... Ne7 {[%clk 0:02:33.1]} 19. Rac1 {[%clk 0:01:48.9]}
19... b5 {[%clk 0:01:37.1]} 20. Be4 {[%clk 0:01:26.3]} 20... Qxc1 {[%clk
0:01:28.2]} 21. Rxc1 {[%clk 0:01:23.5]} 21... Bxe4 {[%clk 0:01:28.5]} 22. Rc7
{[%clk 0:01:19.5]} 22... Rg8 {[%clk 0:01:04.8]} 23. g3 {[%clk 0:01:16]} 23...
Rc8 {[%clk 0:00:56.3]} 24. Rxc8+ {[%clk 0:01:15.6]} 24... Nxc8 {[%clk
0:00:56.5]} 25. Nd2 {[%clk 0:01:15]} 25... Bd5 {[%clk 0:00:48.9]} 26. a4 {[%clk
0:01:07.6]} 26... Na7 {[%clk 0:00:35.5]} 27. axb5 {[%clk 0:01:05.7]} 27... Nxb5
{[%clk 0:00:33.4]} 28. Nc4 {[%clk 0:01:04.3]} 28... Ke7 {[%clk 0:00:27.4]} 29.
Nd6 {[%clk 0:01:04.2]} 29... Rb8 {[%clk 0:00:19.7]} 30. Qb2 {[%clk 0:00:54]}
30... Kd7 {[%clk 0:00:10.5]} 31. Qb4 {[%clk 0:00:53.1]} 31... Rb6 {[%clk
0:00:08.5]} 32. Qc5 {[%clk 0:00:51.8]} 32... Rc6 {[%clk 0:00:07.6]} 33. Qb4
{[%clk 0:00:48.5]} 33... Nxd6 {[%clk 0:00:05.1]} 34. exd6 {[%clk 0:00:47.6]}
34... Rxd6 {[%clk 0:00:06]} 35. e4 {[%clk 0:00:44.5]} 35... Bc6 {[%clk
0:00:06.5]} 36. e5 {[%clk 0:00:34.5]} 36... Rd5 {[%clk 0:00:07]} 37. Qf8 {[%clk
0:00:32.1]} 37... Rxe5 {[%clk 0:00:06.8]} 38. Qxf7+ {[%clk 0:00:32.3]} 38... Kd6
{[%clk 0:00:07.7]} 39. Qf4 {[%clk 0:00:31.2]} 39... a5 {[%clk 0:00:06.4]} 40.
Qxh6 {[%clk 0:00:27.1]} 40... Rc5 {[%clk 0:00:02.2]} 41. Qf8+ {[%clk 0:00:26.2]}
41... Kd5 {[%clk 0:00:02.8]} 42. h4 {[%clk 0:00:25.6]} 42... a4 {[%clk
0:00:02.6]} 43. h5 {[%clk 0:00:22.5]} 43... Kd4 {[%clk 0:00:02.3]} 44. Qf2+
{[%clk 0:00:21.8]} 44... Kd5 {[%clk 0:00:01.2]} 45. h6 {[%clk 0:00:21.2]} 45...
Rc1+ {[%clk 0:00:01.7]} 46. Kh2 {[%clk 0:00:20.3]} 46... Kc4 {[%clk 0:00:02.3]}
47. Qf4+ {[%clk 0:00:18.7]} 47... Kb3 {[%clk 0:00:02.6]} 48. Qxc1 {[%clk
0:00:19.3]} 48... Be4 {[%clk 0:00:02.6]} 49. Qe3+ {[%clk 0:00:16.9]} 1-0

[Event "Early-Titled-Tuesday-Blitz-February-13-2024"]
[Site "Chess.com"]
[Date "2024.02.13"]
[Round "4"]
[White "kingofthenil"]
[Black "tusplingher"]
[Result "1-0"]
[WhiteElo "2688"]
[BlackElo "2459"]
[TimeControl "180+1"]
[EndTime "8:43:19 PST"]
[Termination "kingofthenil won by checkmate"]

1. d4 {[%clk 0:02:52.7]} 1... Nf6 {[%clk 0:02:58.9]} 2. Nf3 {[%clk 0:02:52.1]}
2... d5 {[%clk 0:02:56]} 3. g3 {[%clk 0:02:52.2]} 3... b5 {[%clk 0:02:54.9]} 4.
Bg2 {[%clk 0:02:48.7]} 4... e6 {[%clk 0:02:54.7]} 5. O-O {[%clk 0:02:49.6]} 5...
Be7 {[%clk 0:02:54.8]} 6. a4 {[%clk 0:02:50.5]} 6... b4 {[%clk 0:02:55]} 7. c4
{[%clk 0:02:51]} 7... bxc3 {[%clk 0:02:53.7]} 8. Nxc3 {[%clk 0:02:50.5]} 8...
O-O {[%clk 0:02:53.9]} 9. Ne5 {[%clk 0:02:47]} 9... c5 {[%clk 0:02:42.5]} 10. e4
{[%clk 0:02:44.1]} 10... Bb7 {[%clk 0:02:21.4]} 11. exd5 {[%clk 0:01:59.1]}
11... Nxd5 {[%clk 0:02:09.4]} 12. Qb3 {[%clk 0:01:58.8]} 12... Qb6 {[%clk
0:02:02.9]} 13. Qxb6 {[%clk 0:01:58.1]} 13... axb6 {[%clk 0:02:02.5]} 14. dxc5
{[%clk 0:01:59]} 14... Nxc3 {[%clk 0:01:56.6]} 15. Bxb7 {[%clk 0:01:57.8]} 15...
Ne2+ {[%clk 0:01:56.8]} 16. Kg2 {[%clk 0:01:57.3]} 16... Ra7 {[%clk 0:01:54.7]}
17. c6 {[%clk 0:01:57.6]} 17... Bf6 {[%clk 0:01:44.4]} 18. Nc4 {[%clk
0:01:54.9]} 18... b5 {[%clk 0:01:23]} 19. Nd6 {[%clk 0:01:14.7]} 19... Nxc1
{[%clk 0:01:16.6]} 20. Raxc1 {[%clk 0:01:12.1]} 20... Bxb2 {[%clk 0:01:03]} 21.
Rc2 {[%clk 0:01:05.3]} 21... Nxc6 {[%clk 0:00:54.2]} 22. Bxc6 {[%clk 0:01:04.2]}
22... Be5 {[%clk 0:00:47.7]} 23. Nxb5 {[%clk 0:00:54.1]} 23... Rxa4 {[%clk
0:00:47.5]} 24. Re1 {[%clk 0:00:54.6]} 24... Bf6 {[%clk 0:00:45.5]} 25. Nd6
{[%clk 0:00:52.9]} 25... Ra6 {[%clk 0:00:44.3]} 26. Ne4 {[%clk 0:00:52.8]} 26...
Be7 {[%clk 0:00:43.7]} 27. Rd1 {[%clk 0:00:52.6]} 27... f5 {[%clk 0:00:28.8]}
28. Rd7 {[%clk 0:00:50.7]} 28... Bb4 {[%clk 0:00:24.6]} 29. Ng5 {[%clk
0:00:49.4]} 29... Rf6 {[%clk 0:00:13.8]} 30. Bb7 {[%clk 0:00:39.8]} 30... Rd6
{[%clk 0:00:12]} 31. Rc8+ {[%clk 0:00:39.6]} 31... Rf8 {[%clk 0:00:11.6]} 32.
Rcc7 {[%clk 0:00:20]} 32... Rxd7 {[%clk 0:00:08.2]} 33. Rxd7 {[%clk 0:00:20.9]}
33... h6 {[%clk 0:00:03.8]} 34. Nxe6 {[%clk 0:00:21]} 34... Rf7 {[%clk
0:00:04.5]} 35. Rd8+ {[%clk 0:00:17.9]} 35... Kh7 {[%clk 0:00:04.3]} 36. Bd5
{[%clk 0:00:17]} 36... Rf6 {[%clk 0:00:02.9]} 37. h4 {[%clk 0:00:16.6]} 37...
Kg6 {[%clk 0:00:03.1]} 38. Nf4+ {[%clk 0:00:16.4]} 38... Kh7 {[%clk 0:00:02.8]}
39. Bg8+ {[%clk 0:00:16.3]} 39... Kh8 {[%clk 0:00:02.6]} 40. Bf7+ {[%clk
0:00:15.4]} 40... Kh7 {[%clk 0:00:03.2]} 41. Bg8+ {[%clk 0:00:16.3]} 41... Kh8
{[%clk 0:00:03.5]} 42. Be6+ {[%clk 0:00:13.4]} 42... Kh7 {[%clk 0:00:03.5]} 43.
h5 {[%clk 0:00:14]} 43... Be7 {[%clk 0:00:02.9]} 44. Re8 {[%clk 0:00:12.5]}
44... Bd6 {[%clk 0:00:03.5]} 45. Bg8+ {[%clk 0:00:12.6]} 45... Kh8 {[%clk
0:00:03.7]} 46. Bf7+ {[%clk 0:00:13.5]} 46... Kh7 {[%clk 0:00:03.7]} 47. Bg6+
{[%clk 0:00:14.1]} 47... Rxg6 {[%clk 0:00:03.8]} 48. hxg6# {[%clk 0:00:15]} 1-0

[Event "Early-Titled-Tuesday-Blitz-February-13-2024"]
[Site "Chess.com"]
[Date "2024.02.13"]
[Round "4"]
[White "DarkAlekhine"]
[Black "valorant64"]
[Result "1/2-1/2"]
[WhiteElo "2813"]
[BlackElo "2616"]
[TimeControl "180+1"]
[EndTime "8:43:20 PST"]
[Termination "Game drawn by agreement"]

1. e4 {[%clk 0:03:00.9]} 1... e6 {[%clk 0:02:37.6]} 2. d4 {[%clk 0:02:58.8]}
2... d5 {[%clk 0:02:36.4]} 3. Nd2 {[%clk 0:02:59.3]} 3... c5 {[%clk 0:02:34.3]}
4. exd5 {[%clk 0:02:55.9]} 4... exd5 {[%clk 0:02:31.8]} 5. Ngf3 {[%clk
0:02:53.7]} 5... Nc6 {[%clk 0:02:31.9]} 6. dxc5 {[%clk 0:02:42.8]} 6... Bxc5
{[%clk 0:02:30.1]} 7. Nb3 {[%clk 0:02:42.8]} 7... Bb6 {[%clk 0:02:30.1]} 8. Be2
{[%clk 0:02:36]} 8... Nf6 {[%clk 0:02:28.2]} 9. O-O {[%clk 0:02:36]} 9... O-O
{[%clk 0:02:27.8]} 10. c3 {[%clk 0:02:36.2]} 10... Ne4 {[%clk 0:02:27]} 11. Nfd4
{[%clk 0:02:30]} 11... Re8 {[%clk 0:02:24.8]} 12. Be3 {[%clk 0:02:24]} 12... Ne5
{[%clk 0:02:21.1]} 13. h3 {[%clk 0:02:17.4]} 13... Nc4 {[%clk 0:02:20.1]} 14.
Bxc4 {[%clk 0:02:14.3]} 14... dxc4 {[%clk 0:02:18.6]} 15. Nd2 {[%clk 0:02:14.9]}
15... Nxd2 {[%clk 0:02:17]} 16. Qxd2 {[%clk 0:02:15.8]} 16... Be6 {[%clk
0:02:16.6]} 17. Rad1 {[%clk 0:02:12.7]} 17... Bxd4 {[%clk 0:02:14.9]} 18. Bxd4
{[%clk 0:02:11.9]} 18... Qh4 {[%clk 0:02:14]} 19. Rfe1 {[%clk 0:01:46.8]} 19...
Rad8 {[%clk 0:02:10.9]} 20. Qe3 {[%clk 0:01:28.8]} 20... a6 {[%clk 0:02:02.9]}
21. Qe5 {[%clk 0:01:25.8]} 21... Qh6 {[%clk 0:01:51.7]} 22. Re3 {[%clk
0:01:16.4]} 22... Qg6 {[%clk 0:01:46]} 23. Rg3 {[%clk 0:01:11.1]} 23... f6
{[%clk 0:01:45]} 24. Qf4 {[%clk 0:00:45.3]} 24... Qf7 {[%clk 0:01:35.7]} 25. Re1
{[%clk 0:00:43.7]} 25... Kh8 {[%clk 0:01:19.5]} 26. h4 {[%clk 0:00:40.4]} 26...
Bd5 {[%clk 0:01:18.6]} 27. Rge3 {[%clk 0:00:20.4]} 27... h6 {[%clk 0:01:08.4]}
28. f3 {[%clk 0:00:20.2]} 28... Rxe3 {[%clk 0:01:07.3]} 29. Qxe3 {[%clk
0:00:19]} 29... Bc6 {[%clk 0:01:05.4]} 30. Qf4 {[%clk 0:00:12.3]} 30... Re8
{[%clk 0:01:04.8]} 31. Rxe8+ {[%clk 0:00:11.7]} 31... Qxe8 {[%clk 0:01:03.5]}
32. Kf2 {[%clk 0:00:12.3]} 32... b5 {[%clk 0:01:02.8]} 33. Qf5 {[%clk
0:00:11.7]} 33... Bd7 {[%clk 0:01:01.9]} 34. Qd5 {[%clk 0:00:11.4]} 34... Qc8
{[%clk 0:01:01.9]} 35. Qd6 {[%clk 0:00:11.1]} 35... Qc6 {[%clk 0:01:02]} 36.
Qf8+ {[%clk 0:00:11]} 36... Kh7 {[%clk 0:01:02.2]} 37. Qe7 {[%clk 0:00:11.9]}
37... Qe6 {[%clk 0:01:02]} 38. Qxe6 {[%clk 0:00:12.2]} 38... Bxe6 {[%clk
0:01:02.2]} 39. Ke3 {[%clk 0:00:12.6]} 39... Kg6 {[%clk 0:01:02.3]} 40. g4
{[%clk 0:00:12.2]} 40... h5 {[%clk 0:01:02]} 41. Kf4 {[%clk 0:00:12.8]} 41...
Kh6 {[%clk 0:00:59.3]} 42. Bc5 {[%clk 0:00:12.1]} 42... Kg6 {[%clk 0:00:57.2]}
43. Bf8 {[%clk 0:00:11.6]} 43... hxg4 {[%clk 0:00:56.4]} 44. fxg4 {[%clk
0:00:11.6]} 44... Kf7 {[%clk 0:00:56.8]} 45. Bb4 {[%clk 0:00:11.4]} 45... Ke8
{[%clk 0:00:53.5]} 46. h5 {[%clk 0:00:11.5]} 46... Kf7 {[%clk 0:00:48.4]} 47.
Bc5 {[%clk 0:00:11.8]} 47... Bd7 {[%clk 0:00:48.3]} 48. Bd4 {[%clk 0:00:11.7]}
48... Bc6 {[%clk 0:00:46.6]} 49. Be3 {[%clk 0:00:11.1]} 49... Bd7 {[%clk
0:00:45.7]} 50. a3 {[%clk 0:00:11.1]} 50... Bc8 {[%clk 0:00:44.2]} 51. Bd4
{[%clk 0:00:11]} 51... Bb7 {[%clk 0:00:44]} 52. g5 {[%clk 0:00:10.8]} 52...
fxg5+ {[%clk 0:00:43.7]} 53. Kxg5 {[%clk 0:00:11.7]} 53... Bf3 {[%clk
0:00:44.1]} 54. Be5 {[%clk 0:00:10.8]} 54... Bd1 {[%clk 0:00:44.2]} 55. Bd4
{[%clk 0:00:10.8]} 55... Kg8 {[%clk 0:00:44.2]} 56. h6 {[%clk 0:00:06.7]} 56...
gxh6+ {[%clk 0:00:44.1]} 57. Kxh6 {[%clk 0:00:07.6]} 57... Kf7 {[%clk
0:00:44.6]} 58. Kg5 {[%clk 0:00:08.1]} 58... Ke6 {[%clk 0:00:45.5]} 59. Kf4
{[%clk 0:00:08.5]} 59... Kd5 {[%clk 0:00:46.4]} 60. Ke3 {[%clk 0:00:08.9]} 60...
Bb3 {[%clk 0:00:46.1]} 1/2-1/2

[Event "Early-Titled-Tuesday-Blitz-February-13-2024"]
[Site "Chess.com"]
[Date "2024.02.13"]
[Round "4"]
[White "kibromNNN"]
[Black "GasconJR"]
[Result "0-1"]
[WhiteElo "1788"]
[BlackElo "2566"]
[TimeControl "180+1"]
[EndTime "8:43:20 PST"]
[Termination "GasconJR won on time"]

1. d4 {[%clk 0:02:59.6]} 1... Nf6 {[%clk 0:02:46.4]} 2. c4 {[%clk 0:02:58.7]}
2... e6 {[%clk 0:02:46.7]} 3. Nc3 {[%clk 0:02:58.4]} 3... Bb4 {[%clk 0:02:46.6]}
4. Qc2 {[%clk 0:02:57.6]} 4... c5 {[%clk 0:02:45.9]} 5. dxc5 {[%clk 0:02:57.3]}
5... O-O {[%clk 0:02:46.4]} 6. Nf3 {[%clk 0:02:56.5]} 6... Na6 {[%clk
0:02:44.4]} 7. g3 {[%clk 0:02:55.6]} 7... Nxc5 {[%clk 0:02:37.7]} 8. Bg2 {[%clk
0:02:54]} 8... Nce4 {[%clk 0:02:31.4]} 9. O-O {[%clk 0:02:53.2]} 9... Bxc3
{[%clk 0:02:31.7]} 10. bxc3 {[%clk 0:02:53.2]} 10... d5 {[%clk 0:02:32.4]} 11.
cxd5 {[%clk 0:02:39.2]} 11... exd5 {[%clk 0:02:26.6]} 12. Nd4 {[%clk 0:02:18.1]}
12... Bd7 {[%clk 0:02:16.1]} 13. Ba3 {[%clk 0:02:16]} 13... Re8 {[%clk 0:02:16]}
14. c4 {[%clk 0:02:11.4]} 14... Rc8 {[%clk 0:02:14.9]} 15. c5 {[%clk 0:02:08.9]}
15... Qa5 {[%clk 0:02:02]} 16. c6 {[%clk 0:01:56.2]} 16... Bxc6 {[%clk
0:01:17.9]} 17. Bb2 {[%clk 0:01:44.7]} 17... Bd7 {[%clk 0:01:15.4]} 18. Qd1
{[%clk 0:01:40.3]} 18... Ba4 {[%clk 0:00:50]} 19. Nb3 {[%clk 0:01:33.7]} 19...
Qb6 {[%clk 0:00:46.7]} 20. Bh3 {[%clk 0:01:22.5]} 20... Nc3 {[%clk 0:00:26.9]}
21. Qe1 {[%clk 0:01:00]} 21... Nxe2+ {[%clk 0:00:25.7]} 22. Kh1 {[%clk
0:00:55.5]} 22... Nxg3+ {[%clk 0:00:25.4]} 23. hxg3 {[%clk 0:00:52.1]} 23...
Rxe1 {[%clk 0:00:25.6]} 24. Raxe1 {[%clk 0:00:41.7]} 24... Rd8 {[%clk
0:00:21.5]} 25. Bd4 {[%clk 0:00:40.1]} 25... Qb4 {[%clk 0:00:15.6]} 26. Bc5
{[%clk 0:00:37.3]} 26... Qc4 {[%clk 0:00:14.1]} 27. Rc1 {[%clk 0:00:34.9]} 27...
Qe4+ {[%clk 0:00:13.2]} 28. Bg2 {[%clk 0:00:33.9]} 28... Qg6 {[%clk 0:00:12.9]}
29. Nd4 {[%clk 0:00:28.3]} 29... Bc6 {[%clk 0:00:12.6]} 30. Rfe1 {[%clk
0:00:19.9]} 30... Qh5+ {[%clk 0:00:12.4]} 31. Kg1 {[%clk 0:00:19.4]} 31... Ng4
{[%clk 0:00:13.3]} 32. Re2 {[%clk 0:00:15.2]} 32... Qh2+ {[%clk 0:00:12.2]} 33.
Kf1 {[%clk 0:00:14.9]} 33... Qh5 {[%clk 0:00:09.6]} 34. Rce1 {[%clk 0:00:14.1]}
34... h6 {[%clk 0:00:10.2]} 35. Nf3 {[%clk 0:00:11.3]} 35... d4 {[%clk
0:00:09.4]} 36. Nh4 {[%clk 0:00:10]} 36... Bxg2+ {[%clk 0:00:08.1]} 37. Kxg2
{[%clk 0:00:09.7]} 37... Qxc5 {[%clk 0:00:08]} 38. Re8+ {[%clk 0:00:06.7]} 38...
Rxe8 {[%clk 0:00:07.9]} 39. Rxe8+ {[%clk 0:00:07]} 39... Kh7 {[%clk 0:00:08.8]}
0-1

[Event "Early-Titled-Tuesday-Blitz-February-13-2024"]
[Site "Chess.com"]
[Date "2024.02.13"]
[Round "4"]
[White "Elsa167"]
[Black "Orest_Vovk"]
[Result "0-1"]
[WhiteElo "2910"]
[BlackElo "2679"]
[TimeControl "180+1"]
[EndTime "8:43:21 PST"]
[Termination "Orest_Vovk won on time"]

1. e4 {[%clk 0:03:00.9]} 1... g5 {[%clk 0:02:59.9]} 2. f4 {[%clk 0:02:36.3]}
2... g4 {[%clk 0:02:59]} 3. d4 {[%clk 0:02:27.4]} 3... Bg7 {[%clk 0:02:54.6]} 4.
Qxg4 {[%clk 0:02:21.5]} 4... Bxd4 {[%clk 0:02:53.7]} 5. e5 {[%clk 0:02:21.8]}
5... Kf8 {[%clk 0:02:42.7]} 6. Nf3 {[%clk 0:02:22]} 6... d6 {[%clk 0:02:28.9]}
7. e6 {[%clk 0:01:57.5]} 7... Bg7 {[%clk 0:01:16]} 8. f5 {[%clk 0:01:56.1]} 8...
Nf6 {[%clk 0:01:09.5]} 9. Qh3 {[%clk 0:01:53]} 9... c6 {[%clk 0:00:57.7]} 10. g4
{[%clk 0:01:17.5]} 10... fxe6 {[%clk 0:00:32]} 11. g5 {[%clk 0:01:17.8]} 11...
Qa5+ {[%clk 0:00:27.5]} 12. Nc3 {[%clk 0:01:12.3]} 12... Qxf5 {[%clk 0:00:28.4]}
13. gxf6 {[%clk 0:01:11.5]} 13... Bxf6 {[%clk 0:00:25.8]} 14. Qg3 {[%clk
0:00:50.9]} 14... Rg8 {[%clk 0:00:18.3]} 15. Bh6+ {[%clk 0:00:50.6]} 15... Kf7
{[%clk 0:00:17.9]} 16. Qf2 {[%clk 0:00:46.6]} 16... Nd7 {[%clk 0:00:11.6]} 17.
Bd3 {[%clk 0:00:46.8]} 17... Qh5 {[%clk 0:00:11]} 18. Be3 {[%clk 0:00:33.1]}
18... Bxc3+ {[%clk 0:00:10.7]} 19. bxc3 {[%clk 0:00:33.2]} 19... Nf6 {[%clk
0:00:11.6]} 20. O-O-O {[%clk 0:00:22.9]} 20... e5 {[%clk 0:00:11.8]} 21. Rdf1
{[%clk 0:00:20.1]} 21... Be6 {[%clk 0:00:10]} 22. Rhg1 {[%clk 0:00:18.6]} 22...
Rxg1 {[%clk 0:00:09]} 23. Rxg1 {[%clk 0:00:18.9]} 23... Rg8 {[%clk 0:00:09.1]}
24. Ng5+ {[%clk 0:00:17.2]} 24... Rxg5 {[%clk 0:00:08.8]} 25. Rxg5 {[%clk
0:00:16.5]} 25... Qh3 {[%clk 0:00:08.5]} 26. Qg3 {[%clk 0:00:12.6]} 26... Qxg3
{[%clk 0:00:07.5]} 27. Rxg3 {[%clk 0:00:13.1]} 27... e4 {[%clk 0:00:07.4]} 28.
Be2 {[%clk 0:00:12.2]} 28... d5 {[%clk 0:00:07.4]} 29. Bxa7 {[%clk 0:00:11.5]}
29... Bf5 {[%clk 0:00:07.2]} 30. Bd4 {[%clk 0:00:11.5]} 30... Nd7 {[%clk
0:00:07.2]} 31. Bg4 {[%clk 0:00:07.8]} 31... Bxg4 {[%clk 0:00:05.7]} 32. Rxg4
{[%clk 0:00:08.7]} 32... e5 {[%clk 0:00:05.9]} 33. Rg7+ {[%clk 0:00:09.3]} 33...
Kxg7 {[%clk 0:00:05.4]} 34. Bf2 {[%clk 0:00:08]} 34... Kf6 {[%clk 0:00:05.7]}
35. c4 {[%clk 0:00:08.4]} 35... d4 {[%clk 0:00:05.3]} 36. a4 {[%clk 0:00:09.1]}
36... e3 {[%clk 0:00:05.6]} 37. Bh4+ {[%clk 0:00:09.7]} 37... Ke6 {[%clk
0:00:05.2]} 38. Kd1 {[%clk 0:00:10]} 38... e4 {[%clk 0:00:05.1]} 39. Bd8 {[%clk
0:00:09.3]} 39... Kd6 {[%clk 0:00:03.1]} 40. c3 {[%clk 0:00:03.5]} 40... c5
{[%clk 0:00:03.3]} 41. Ke2 {[%clk 0:00:02.9]} 41... Ne5 {[%clk 0:00:02.9]} 42.
cxd4 {[%clk 0:00:02.6]} 42... cxd4 {[%clk 0:00:03.8]} 43. Bf6 {[%clk 0:00:01.9]}
43... Nc6 {[%clk 0:00:02.3]} 44. a5 {[%clk 0:00:01.5]} 44... Kc5 {[%clk
0:00:02.8]} 0-1